bitfinex/quotes_ETHUSD_20250623
["timestamp","ask_amount","ask_price","bid_price","bid_amount"]
[1750710872856,0.73213787,2360.2,2359.0,0.7795]
[1750710873061,0.73213787,2360.2,2359.0,5.01850674]
[1750710873062,0.94393787,2360.1,2359.0,5.01850674]
[1750710873225,0.39393787,2360.0,2359.0,0.7795]
[1750710873424,0.39393787,2359.9,2359.0,5.01856897]
[1750710873626,0.39393787,2359.8,2359.0,5.01856897]
[1750710873858,0.39393787,2359.7,2359.0,1.70529472]
[1750710874063,0.39393787,2360.0,2359.0,1.70529472]
[1750710874264,0.39393787,2359.9,2359.0,1.70529472]
[1750710874561,0.55,2360.1,2359.0,1.70529472]
[1750710874562,0.39393787,2359.8,2359.0,0.7795]
[1750710874764,0.39393787,2359.7,2359.0,0.7795]
[1750710874964,2.832,2360.8,2359.5,0.7795]
[1750710875171,0.39414466,2360.7,2359.5,0.7795]
[1750710875464,0.39414466,2360.6,2360.0,5.01672669]
[1750710875626,0.39414466,2360.5,2360.0,5.01671537]
[1750710875825,0.39414466,2360.4,2360.0,0.7795]
[1750710876024,0.55,2361.1,2360.1,0.50168813]
[1750710876261,0.39428138,2361.0,2360.0,0.7795]
[1750710876474,0.55,2360.6,2359.4,0.7795]
[1750710876772,3.22628138,2360.5,2359.4,5.01785518]
[1750710876931,3.22628138,2360.5,2359.4,0.7795]
[1750710876932,10.94428138,2360.4,2359.4,0.7795]
[1750710877264,0.55,2360.2,2359.4,0.7795]
[1750710877582,0.39428138,2360.1,2359.4,0.7795]
[1750710877738,0.39453837,2360.0,2359.4,0.7795]
[1750710877935,0.39451517,2359.9,2359.4,0.7795]
[1750710878149,0.39451517,2359.8,2359.4,0.7795]
[1750710878444,10.0,2360.1,2359.4,0.7795]
[1750710878633,0.39461347,2360.0,2359.6,4.23793178]
[1750710878845,10.0,2360.3,2359.6,0.92557354]
[1750710878846,0.39461347,2359.9,2359.6,0.92557354]
[1750710879047,0.39461347,2359.8,2359.6,0.92557354]
[1750710879263,10.0,2360.3,2359.4,0.7795]
[1750710879576,0.39463814,2360.2,2359.5,4.23810228]
[1750710879726,0.39463814,2360.1,2359.5,4.23810228]
[1750710879925,0.39463814,2360.0,2359.4,5.01776974]
[1750710880153,0.39463285,2359.9,2359.5,4.23817175]
[1750710880431,10.0,2360.3,2359.4,5.94341313]
[1750710880648,0.39463874,2360.2,2359.5,4.23810334]
[1750710880846,0.39463874,2360.1,2359.5,4.23810334]
[1750710881043,0.39474417,2360.0,2359.4,1.705128]
[1750710881233,10.7871,2360.7,2359.7,4.23769374]
[1750710881428,10.7871,2360.7,2359.4,0.7795]
[1750710881429,0.39471592,2360.6,2359.6,4.23784225]
[1750710881666,0.39471592,2360.5,2359.5,4.23811749]
[1750710881857,0.39471592,2360.4,2359.6,4.23784455]
[1750710882047,0.39471592,2360.3,2359.6,4.23784455]
[1750710882231,10.7871,2360.7,2359.6,5.16344986]
[1750710882432,0.39477703,2360.6,2359.7,4.23782009]
[1750710882627,10.7871,2360.7,2359.6,5.16348275]
[1750710882628,0.39477703,2360.5,2359.6,5.16348275]
[1750710882862,0.39477703,2360.4,2359.6,0.92556546]
[1750710883061,0.39477703,2360.3,2359.6,0.92556546]
[1750710883265,0.39477703,2360.2,2359.6,0.92556546]
[1750710883473,0.39477703,2360.1,2359.6,0.92556546]
[1750710883690,0.39477703,2360.0,2359.6,0.92556546]
[1750710883897,0.7871,2361.1,2360.0,0.7826]
[1750710884057,4.18681302,2361.8,2360.0,0.7826]
[1750710884058,0.39498498,2361.0,2360.4,4.23648621]
[1750710884391,0.7871,2361.4,2360.0,0.7826]
[1750710884392,0.39498498,2360.9,2360.0,0.7826]
[1750710884593,0.39498498,2360.8,2360.3,4.23673728]
[1750710884793,0.39498498,2360.7,2360.2,4.23684388]
[1750710885092,0.7871,2361.4,2360.3,0.8473851]
[1750710885256,0.39490338,2361.3,2360.4,4.2365576]
[1750710885591,0.39490338,2361.2,2360.4,4.2365576]
[1750710885796,0.39489277,2361.1,2360.4,4.23646173]
[1750710885993,0.39489277,2361.0,2360.2,4.23684611]
[1750710886165,0.39489277,2360.9,2360.0,0.7826]
[1750710886367,0.39489277,2360.8,2360.2,4.23682502]
[1750710886569,10.39492201,2360.7,2360.0,0.7826]
[1750710886775,0.39505647,2360.6,2360.0,0.7826]
[1750710886986,0.39505647,2360.5,2360.0,0.7826]
[1750710887169,10.0,2361.1,2360.0,0.7826]
[1750710887368,10.55,2360.9,2360.0,0.7826]
[1750710887681,1.77007998,2360.8,2360.0,0.7826]
[1750710887881,0.39515034,2360.7,2360.1,4.23700935]
[1750710888081,0.39515034,2360.6,2360.1,4.23710859]
[1750710888256,0.39515034,2360.5,2360.3,4.23659785]
[1750710888600,0.7871,2361.4,2360.0,0.7826]
[1750710888899,10.39508233,2361.3,2360.3,4.23666576]
[1750710889099,0.39508233,2361.2,2360.3,4.23666576]
[1750710889295,0.39508233,2361.1,2360.3,4.23666576]
[1750710889474,0.39508233,2361.0,2360.4,4.23653742]
[1750710889672,0.39508233,2360.9,2360.3,4.23664954]
[1750710889877,0.39508233,2360.8,2360.3,4.23664954]
[1750710890199,0.3950114,2360.7,2360.3,4.23664954]
[1750710890400,0.3950114,2360.6,2360.3,4.23664954]
[1750710890600,10.35921,2361.3,2360.3,4.23664954]
[1750710890895,1.7901458,2361.2,2360.3,4.23664954]
[1750710891100,0.3950148,2361.1,2360.4,4.23656279]
[1750710891397,1.395131,2361.2,2360.4,4.23656279]
[1750710891699,0.39500092,2361.1,2360.5,4.23639059]
[1750710891916,0.39500092,2361.0,2360.8,4.23582085]
[1750710892060,0.7839,2361.7,2360.8,4.23574778]
[1750710892262,0.3952996,2361.6,2360.9,4.23552445]
[1750710892564,0.7839,2361.7,2360.9,4.23552445]
[1750710892789,0.7839,2361.7,2361.0,4.2354234]
[1750710893095,0.7839,2361.7,2360.8,4.23574201]
[1750710893397,2.805,2362.0,2361.2,4.23512219]
[1750710893559,3.5889,2362.0,2360.8,0.5015542]
[1750710893761,10.0,2361.9,2360.8,4.73732371]
[1750710894400,10.0,2361.9,2360.6,5.015911]
[1750710894563,10.0,2361.9,2360.8,4.2358396]
[1750710894767,10.0,2361.9,2360.7,4.23593162]
[1750710895178,0.55,2361.8,2360.6,0.7798]
[1750710895497,0.55,2361.8,2360.6,5.01600888]
[1750710895704,1.055,2361.7,2360.6,7.07383471]
[1750710896006,1.055,2361.7,2360.6,2.83762583]
[1750710896213,0.55,2361.8,2360.8,4.23573851]
[1750710896905,2.805,2361.9,2360.8,4.23573071]
[1750710897068,2.805,2361.9,2360.7,4.23592165]
[1750710897269,2.805,2361.9,2360.7,4.23588525]
[1750710897663,0.7871,2361.7,2360.2,5.61521792]
[1750710897904,0.7871,2361.7,2360.6,4.23618598]
[1750710898074,0.55,2361.6,2360.3,5.70019487]
[1750710898401,0.7871,2361.7,2360.3,1.46352246]
[1750710898571,0.7871,2361.7,2360.4,0.55]
[1750710898771,0.7871,2361.7,2360.6,4.23621113]
[1750710898972,18.698,2362.2,2360.6,4.23621113]
[1750710898973,0.7871,2362.7,2360.9,0.8283]
[1750710899208,0.7871,2362.7,2361.1,0.55]
[1750710899209,1.07743855,2362.7,2361.1,0.55]
[1750710899413,0.29033855,2362.7,2361.6,0.8283]
[1750710899575,0.29033855,2362.7,2361.7,4.23415244]
[1750710899775,0.29033855,2362.7,2361.6,0.8283]
[1750710900101,0.55,2362.5,2361.2,12.74806848]
[1750710900433,0.7523,2362.6,2362.1,4.23345329]
[1750710900615,5.86153823,2364.3,2361.7,2.804]
[1750710900616,0.7523,2363.0,2361.7,2.804]
[1750710900914,0.7523,2363.0,2361.4,0.7596]
[1750710901059,0.55,2362.7,2361.0,4.9950047]
[1750710901402,0.55,2362.3,2361.0,4.9950047]
[1750710901702,0.55,2362.3,2361.1,0.92306215]
[1750710902104,0.55,2362.4,2360.9,4.23559138]
[1750710902264,0.55,2362.0,2360.7,1.25855111]
[1750710902478,0.55,2362.2,2360.7,1.25855111]
[1750710902479,10.0,2361.8,2360.7,1.25855111]
[1750710902681,0.766,2361.7,2360.7,1.25855111]
[1750710902880,0.766,2361.7,2360.2,4.2369008]
[1750710902881,0.55,2361.6,2360.1,14.41409067]
[1750710903215,0.55,2361.4,2360.1,4.23709067]
[1750710903417,0.55,2361.0,2360.0,0.7521]
[1750710903922,1.316,2361.1,2359.5,0.7521]
[1750710904234,0.766,2360.7,2359.5,4.99026507]
[1750710904379,10.0,2360.5,2359.6,4.23792074]
[1750710904802,10.0,2360.5,2359.5,1.1058964]
[1750710905115,10.0,2360.5,2359.6,0.53441998]
[1750710905910,3.57,2360.7,2359.6,0.53441998]
[1750710906095,0.766,2360.7,2359.5,5.34401135]
[1750710906298,10.766,2360.7,2359.9,4.23746233]
[1750710906487,10.766,2360.7,2359.7,4.23771693]
[1750710906689,0.55,2360.6,2359.5,1.1058964]
[1750710907409,0.766,2360.7,2359.5,1.1058964]
[1750710907612,0.7613,2361.1,2360.3,4.2366047]
[1750710907799,10.7613,2361.1,2360.3,4.2366047]
[1750710907992,10.7613,2361.1,2360.4,4.23653675]
[1750710908197,10.7613,2361.1,2360.5,4.23638894]
[1750710908408,10.7613,2361.1,2360.2,0.8154]
[1750710908623,10.7613,2361.1,2359.9,4.2373613]
[1750710908795,0.55,2361.0,2359.9,4.2373613]
[1750710908999,0.55,2361.0,2359.8,4.23764725]
[1750710909213,10.7613,2361.1,2359.7,5.05310449]
[1750710909407,10.0,2360.9,2359.8,0.55875252]
[1750710909722,0.7613,2361.1,2359.7,0.8154]
[1750710910023,3.5653,2361.1,2360.0,4.23726378]
[1750710910184,3.5653,2361.1,2359.8,4.23764725]
[1750710910393,3.5653,2361.1,2360.0,4.23711758]
[1750710910721,0.7613,2361.1,2360.1,4.23700689]
[1750710911022,10.7613,2361.1,2360.2,5.08432632]
[1750710911430,10.7613,2361.1,2360.2,0.84741245]
[1750710911726,10.7613,2361.1,2360.1,4.23702561]
[1750710912022,10.7613,2361.1,2359.8,4.23762642]
[1750710912197,0.7613,2361.1,2360.4,4.23651783]
[1750710912397,0.7613,2361.1,2359.7,0.8154]
[1750710912597,0.7613,2361.1,2360.0,4.2372105]
[1750710912799,0.7613,2361.1,2359.7,0.8154]
[1750710913002,0.55,2361.0,2359.7,0.8154]
[1750710913189,0.55,2360.6,2359.4,0.8154]
[1750710913387,1.3194,2360.3,2359.0,4.23900744]
[1750710913602,1.3194,2360.3,2358.9,0.812]
[1750710913603,1.3194,2360.3,2358.9,5.05118164]
[1750710913894,2.804,2360.2,2359.2,4.23863882]
[1750710914214,2.775,2360.2,2359.3,4.23846682]
[1750710914413,10.0,2360.1,2359.4,4.23829575]
[1750710914588,0.7694,2360.3,2359.6,4.23795574]
[1750710914789,0.7694,2360.8,2360.3,4.23664296]
[1750710915115,0.7694,2360.8,2360.4,0.4236643]
[1750710915320,0.7694,2360.8,2360.2,4.23682988]
[1750710915626,0.7694,2360.8,2360.1,4.23695562]
[1750710915826,0.7694,2360.8,2359.7,0.55]
[1750710916128,0.7694,2360.8,2360.2,4.2368638]
[1750710916293,0.7694,2360.8,2360.0,4.23728813]
[1750710916294,0.7694,2360.8,2360.1,4.23708955]
[1750710916494,0.7739,2361.1,2360.2,0.84743777]
[1750710916891,0.7739,2361.1,2360.3,4.23674029]
[1750710917221,0.7739,2361.1,2360.3,4.23674468]
[1750710917418,0.7739,2361.1,2360.1,4.23694925]
[1750710917642,0.7739,2361.1,2360.2,4.23683114]
[1750710918258,0.7739,2361.1,2359.9,11.818]
[1750710918409,0.7739,2361.1,2360.1,4.2370953]
[1750710919056,0.7739,2361.1,2360.0,1.1818]
[1750710919240,0.7739,2361.1,2360.5,4.23636246]
[1750710919612,0.7739,2361.1,2360.5,4.23628088]
[1750710919811,0.7739,2361.1,2360.6,4.23618747]
[1750710920009,0.7739,2361.1,2360.6,0.84724684]
[1750710920307,0.21075588,2363.3,2360.6,0.84724684]
[1750710920308,0.7871,2361.8,2361.0,0.7859]
[1750710920548,0.7871,2361.8,2361.0,5.02124619]
[1750710920761,0.7871,2362.2,2361.1,0.55]
[1750710920967,0.7871,2362.5,2361.7,5.02009021]
[1750710921173,0.7871,2362.5,2361.8,0.50200902]
[1750710921462,0.7871,2362.5,2361.4,0.7859]
[1750710921614,0.7871,2362.5,2361.5,4.23459665]
[1750710921816,0.7871,2362.5,2361.7,4.23419785]
[1750710922053,0.7871,2362.5,2361.5,4.23451554]
[1750710922251,0.7871,2362.5,2361.7,4.23421743]
[1750710922414,0.7871,2362.5,2361.8,4.23398099]
[1750710922923,0.7871,2362.5,2361.7,0.55]
[1750710923123,0.7871,2363.2,2362.1,4.23352101]
[1750710923337,10.7871,2363.2,2362.1,4.2334087]
[1750710923536,10.7871,2363.0,2361.2,9.3104]
[1750710923774,0.55,2362.9,2361.2,9.3104]
[1750710923923,0.55,2362.9,2360.8,4.23581799]
[1750710923924,0.7871,2362.4,2360.8,5.0661371]
[1750710924143,14.06795938,2363.1,2361.3,4.23486331]
[1750710924144,0.7871,2362.1,2361.3,4.23486331]
[1750710924455,1.3371,2361.8,2360.5,4.23629242]
[1750710924671,0.55,2361.4,2360.3,7.2749958]
[1750710924974,0.7871,2361.0,2360.3,7.2749958]
[1750710925335,0.55,2361.0,2360.0,1.1818]
[1750710925567,0.55,2361.0,2359.3,0.8304]
[1750710925568,1.3371,2361.0,2359.3,0.8304]
[1750710925714,20.176,2361.2,2359.3,4.2385091]
[1750710925715,0.7871,2360.9,2359.3,4.2385091]
[1750710926030,0.7871,2360.9,2359.2,4.23871907]
[1750710926031,0.7871,2360.5,2359.0,4.23908435]
[1750710926230,0.7871,2360.2,2359.2,4.23872123]
[1750710926434,0.7871,2360.2,2359.1,4.59271717]
[1750710926618,0.7871,2360.2,2359.2,1.23701752]
[1750710926819,0.7871,2360.2,2359.9,4.23744031]
[1750710927018,0.7871,2360.6,2359.4,3.5921]
[1750710927257,0.7871,2360.6,2359.8,4.23754603]
[1750710927419,0.7871,2360.6,2359.8,0.35375142]
[1750710927618,0.7871,2360.6,2359.9,0.35373643]
[1750710927819,0.7871,2360.6,2359.9,5.0503288]
[1750710928057,0.7871,2360.6,2359.9,0.81286805]
[1750710928276,2.775,2360.9,2359.9,0.35373643]
[1750710928277,0.7871,2360.4,2359.9,0.35373643]
[1750710928475,10.0,2360.2,2359.9,0.35373643]
[1750710928681,10.0,2360.2,2359.2,4.23872499]
[1750710928958,10.0,2360.2,2359.3,4.59235058]
[1750710929157,10.0,2360.2,2359.4,0.88310593]
[1750710929363,10.0,2360.2,2359.3,0.35382639]
[1750710929364,0.55,2360.0,2359.3,0.35382639]
[1750710929521,0.7871,2359.9,2359.3,0.35382639]
[1750710929715,0.7871,2359.9,2358.8,4.23933665]
[1750710930157,0.7871,2359.9,2358.6,4.23972259]
[1750710930460,0.7871,2359.9,2358.7,0.42397226]
[1750710930621,0.7871,2359.9,2358.8,4.2394433]
[1750710930962,0.7871,2359.9,2358.7,0.42397226]
[1750710931167,0.7871,2359.9,2358.9,4.23924437]
[1750710931322,0.7871,2359.9,2358.8,4.23941312]
[1750710931652,0.7871,2359.9,2358.8,4.239427]
[1750710932639,0.7545,2359.6,2358.7,4.23952936]
[1750710932840,0.7545,2359.6,2358.2,6.60622364]
[1750710933147,10.0,2359.7,2358.2,6.60622364]
[1750710933148,0.7545,2359.4,2358.2,6.60622364]
[1750710933344,1.07545,2359.5,2357.9,4.2409925]
[1750710933345,0.7871,2359.2,2357.9,4.2409925]
[1750710933558,10.0,2359.0,2357.9,4.24091999]
[1750710933771,0.7871,2358.9,2357.8,0.2203921]
[1750710934086,0.7871,2358.9,2357.8,2.9963921]
[1750710934226,0.7871,2358.9,2358.1,0.55]
[1750710934427,0.7871,2358.9,2358.0,0.7514]
[1750710934428,0.7871,2359.8,2358.9,0.7514]
[1750710934757,0.7871,2359.8,2359.3,4.23850014]
[1750710934921,0.7871,2359.8,2359.2,4.23856151]
[1750710935122,0.7871,2359.8,2359.3,0.42385615]
[1750710935363,0.7871,2359.8,2358.9,0.7514]
[1750710935522,0.7871,2359.8,2359.1,4.23881323]
[1750710935718,0.7871,2359.8,2358.9,0.7514]
[1750710935959,0.7871,2359.8,2359.1,4.23882241]
[1750710936124,0.7871,2359.8,2358.9,0.7514]
[1750710936464,0.7871,2359.8,2357.3,6.64270543]
[1750710936465,0.7588,2359.5,2358.2,0.7698]
[1750710936622,0.7588,2359.1,2358.2,2.3656323]
[1750710936829,10.0,2358.9,2358.0,4.24087267]
[1750710937051,10.0,2358.7,2358.1,4.24064369]
[1750710937328,10.0,2358.7,2357.9,4.24093969]
[1750710937523,0.7588,2358.6,2357.8,0.2203921]
[1750710937752,0.7588,2358.6,2357.9,4.24105781]
[1750710937935,0.7588,2358.6,2357.9,0.87027854]
[1750710938559,0.7588,2358.6,2357.8,0.2203921]
[1750710939246,0.7588,2358.6,2357.8,4.46162548]
[1750710939418,0.7588,2358.6,2357.8,0.2203921]
[1750710939623,10.0,2358.7,2357.8,0.2203921]
[1750710939624,0.55,2358.1,2357.8,0.2203921]
[1750710939829,10.0,2358.0,2357.8,0.2203921]
[1750710940240,1.3371,2357.9,2357.8,0.01686161]
[1750710940467,0.7871,2357.9,2357.8,0.01686161]
[1750710940648,1.3371,2357.9,2357.8,0.01686161]
[1750710940955,11.3371,2357.9,2357.8,0.01686161]
[1750710941671,10.7871,2357.9,2357.8,0.01686161]
[1750710941980,3.5641,2357.9,2357.8,0.01686161]
[1750710942272,4.1141,2357.9,2357.8,1e-08]
[1750710942448,0.7871,2358.3,2357.8,1e-08]
[1750710943046,0.7871,2358.3,2357.8,4.24114847]
[1750710943448,0.7871,2358.3,2357.8,1e-08]
[1750710944142,0.7871,2358.3,2357.8,4.66526892]
[1750710944336,2.778,2358.8,2357.9,4.24105592]
[1750710944591,0.7871,2358.9,2358.5,4.23998304]
[1750710944746,0.7871,2358.9,2358.0,0.7548]
[1750710944938,0.7871,2358.9,2358.3,4.24024459]
[1750710945135,0.7871,2358.9,2358.3,5.08832241]
[1750710945370,0.7871,2358.9,2358.4,4.24012631]
[1750710945684,0.7871,2358.9,2358.3,5.08832241]
[1750710945685,10.9741,2359.3,2358.3,0.84807782]
[1750710945881,10.9741,2359.3,2358.5,4.23988849]
[1750710946181,10.9741,2359.3,2358.5,4.23987217]
[1750710946475,12.34641,2359.3,2358.1,4.24059109]
[1750710946804,12.34641,2359.3,2358.1,4.24070226]
[1750710946805,10.55,2359.2,2358.1,4.24070226]
[1750710946941,10.0,2359.2,2358.2,4.24049434]
[1750710947361,10.0,2359.2,2358.1,0.55]
[1750710947573,15.51013599,2359.3,2358.8,4.23935593]
[1750710947574,0.7871,2359.3,2358.8,4.23935593]
[1750710948069,2.749,2359.6,2358.9,4.23909406]
[1750710948070,0.7871,2359.6,2358.9,4.23909406]
[1750710948235,0.7871,2359.6,2358.8,5.08728732]
[1750710948441,0.7871,2359.6,2358.8,0.84791026]
[1750710948643,0.7871,2359.6,2358.4,0.7588]
[1750710948842,10.55,2359.9,2358.0,4.99952205]
[1750710949037,0.7871,2359.8,2358.0,4.99952205]
[1750710949276,0.7871,2359.5,2357.9,2.749]
[1750710949448,0.7871,2359.1,2357.9,4.24097476]
[1750710949653,0.7871,2359.1,2358.0,0.42409748]
[1750710950063,0.7871,2359.1,2358.1,4.24061843]
[1750710950064,10.0,2359.0,2358.1,4.24061843]
[1750710951179,10.0,2359.0,2358.0,4.66489493]
[1750710951677,0.7871,2358.9,2358.0,0.42409748]
[1750710951886,0.7871,2358.9,2358.2,4.24044077]
[1750710952181,0.7871,2358.9,2358.1,4.24061777]
[1750710952337,0.7871,2358.9,2358.0,4.2408039]
[1750710952540,0.55,2358.8,2357.8,1e-08]
[1750710952838,1.3371,2358.6,2357.8,1e-08]
[1750710953053,10.0,2358.4,2357.8,1e-08]
[1750710953248,0.7871,2358.3,2357.8,1e-08]
[1750710954268,0.7871,2358.6,2357.9,4.24095534]
[1750710954590,0.7871,2358.6,2357.8,1e-08]
[1750710954883,0.7871,2358.6,2358.0,4.24080498]
[1750710955116,0.7871,2358.6,2357.9,4.24097611]
[1750710955467,0.7871,2358.6,2358.0,4.24077282]
[1750710955881,0.7871,2358.6,2358.0,4.24081339]
[1750710956166,0.55,2358.5,2357.8,1e-08]
[1750710956366,0.7546,2358.3,2357.8,1e-08]
[1750710958835,2.749,2358.4,2357.8,1e-08]
[1750710958836,0.7546,2358.1,2357.8,1e-08]
[1750710960106,0.55,2358.1,2357.8,1e-08]
[1750710960272,0.55,2357.9,2357.8,1e-08]
[1750710960628,16.302,2358.6,2357.8,1e-08]
[1750710960629,0.7831,2358.0,2357.8,1e-08]
[1750710960926,0.7831,2357.8,2356.8,4.24295324]
[1750710961102,0.7831,2357.8,2356.8,0.42429532]
[1750710961407,0.7831,2357.8,2356.5,6.99350265]
[1750710961708,0.7831,2357.8,2356.1,4.24428706]
[1750710961709,0.55,2357.5,2356.0,3.5322]
[1750710961894,0.7831,2357.4,2356.5,4.24349785]
[1750710962270,0.7831,2357.4,2356.2,0.55]
[1750710962486,0.7831,2357.4,2356.7,4.2431149]
[1750710962690,0.7831,2357.4,2356.7,5.09176522]
[1750710963018,0.7831,2357.4,2356.7,1.63085032]
[1750710963218,0.7831,2357.8,2357.0,4.24264174]
[1750710963435,0.7831,2357.8,2357.1,4.24245073]
[1750710963636,0.7831,2357.8,2356.7,0.7822]
[1750710963985,0.7831,2357.8,2356.7,4.24313739]
[1750710964425,10.0,2358.0,2356.4,10.9732]
[1750710964426,0.55,2357.7,2356.4,10.9732]
[1750710964580,0.55,2357.7,2355.6,0.42225835]
[1750710964581,0.7831,2357.4,2356.1,5.02647062]
[1750710964793,1.07831,2357.3,2356.2,0.77764706]
[1750710964996,1.07831,2357.3,2355.6,4.66729329]
[1750710964997,0.7871,2357.1,2355.8,4.2447593]
[1750710965295,0.7871,2357.1,2356.3,4.2437962]
[1750710965540,0.7871,2357.1,2356.7,4.243123]
[1750710965835,0.7871,2357.4,2357.2,4.24217762]
[1750710966139,0.7871,2357.8,2356.7,0.55]
[1750710966427,0.7871,2357.8,2357.1,4.24238333]
[1750710966593,0.7871,2357.8,2357.0,4.24259784]
[1750710966802,0.7871,2357.8,2357.0,1.12353755]
[1750710967006,0.7871,2357.8,2357.1,4.24235098]
[1750710967338,0.7871,2357.8,2356.9,2.75]
[1750710967507,0.7871,2357.8,2356.6,4.2433965]
[1750710968399,0.7871,2357.6,2356.3,2.75]
[1750710968797,0.7871,2357.6,2356.8,4.24296088]
[1750710969017,0.7871,2357.6,2356.5,4.24344332]
[1750710969204,0.7871,2357.6,2356.4,4.24368566]
[1750710969400,0.7871,2357.6,2356.5,4.24350555]
[1750710969606,0.55,2357.5,2355.9,0.8312]
[1750710969840,0.55,2357.1,2355.7,4.24501562]
[1750710970156,0.7871,2356.6,2355.5,0.2203921]
[1750710970342,0.7871,2356.6,2355.5,0.66698266]
[1750710970509,0.7871,2356.6,2355.5,4.46574928]
[1750710970704,0.7871,2356.6,2355.5,0.2203921]
[1750710971014,0.7871,2356.6,2355.7,4.24486387]
[1750710971214,0.7871,2356.6,2355.6,4.24513563]
[1750710971535,0.7871,2356.6,2355.5,5.24078915]
[1750710971742,0.7871,2356.6,2355.6,1.2236294]
[1750710971900,0.7871,2356.6,2355.5,0.9954921]
[1750710972329,0.7871,2356.6,2355.5,0.2203921]
[1750710972714,1.20728982,2356.6,2355.5,0.2203921]
[1750710973639,0.787,2356.5,2355.5,0.2203921]
[1750710974037,0.55,2356.4,2355.5,0.2203921]
[1750710974237,0.787,2356.3,2355.5,0.2203921]
[1750710974773,0.7871,2356.1,2355.5,0.2203921]
[1750710974979,10.0,2356.2,2355.5,0.2203921]
[1750710974980,0.7871,2355.9,2355.5,0.2203921]
[1750710975148,10.7871,2355.9,2355.5,0.2203921]
[1750710975481,0.7871,2355.9,2355.5,0.2203921]
[1750710975976,0.7871,2355.7,2355.5,0.2203921]
[1750710976177,0.55,2355.6,2355.5,0.2203921]
[1750710976378,0.55,2355.6,2353.6,10.196]
[1750710976379,0.55,2355.2,2353.2,0.8251]
[1750710976576,11.3371,2355.0,2353.2,5.07458811]
[1750710976739,1.3371,2354.7,2353.3,0.52949802]
[1750710976936,1.3371,2354.7,2353.2,0.8251]
[1750710976937,0.7871,2354.6,2353.2,5.07448954]
[1750710977138,0.7871,2354.6,2353.2,0.8251]
[1750710977337,2.724,2354.5,2353.3,4.24931481]
[1750710977542,2.724,2354.5,2353.3,4.2493393]
[1750710977543,10.0,2354.4,2353.3,4.2493393]
[1750710977773,10.0,2354.4,2353.2,5.07457842]
[1750710978082,1.2724,2354.3,2353.2,1.35459705]
[1750710978380,0.7871,2354.2,2353.2,0.8251]
[1750710978542,0.7871,2354.5,2353.8,4.24832753]
[1750710978736,0.7871,2354.5,2353.8,5.03472753]
[1750710978943,0.7871,2354.5,2353.8,5.03471632]
[1750710979262,0.7871,2354.5,2353.8,0.7864]
[1750710979461,0.7871,2354.5,2353.9,4.2481693]
[1750710979882,0.7871,2354.5,2353.8,1.13754]
[1750710979883,0.7871,2354.5,2354.0,4.24792467]
[1750710980190,10.0,2354.8,2353.9,0.55]
[1750710980191,0.7871,2354.8,2353.9,0.55]
[1750710980341,0.7871,2354.8,2353.9,4.79813649]
[1750710980542,0.7871,2354.8,2353.8,5.03479237]
[1750710980543,1.21700414,2354.8,2353.8,0.7864]
[1750710980793,0.7871,2354.7,2353.1,1.0067921]
[1750710980973,2.725,2354.6,2353.6,4.24869639]
[1750710981174,3.11920041,2354.6,2353.6,5.09846472]
[1750710981373,0.39420041,2354.6,2353.6,0.84976833]
[1750710981581,10.0,2354.4,2353.5,4.24883708]
[1750710982100,0.7871,2354.7,2354.0,4.24795309]
[1750710982397,0.7871,2354.7,2353.3,0.55]
[1750710982696,2.725,2354.7,2353.5,0.55]
[1750710982996,10.0,2355.0,2353.2,0.8147]
[1750710982997,10.7871,2354.5,2353.2,0.8147]
[1750710983182,10.0,2354.5,2353.2,5.06414499]
[1750710983383,10.0,2354.3,2353.2,0.8147]
[1750710983787,2.725,2354.3,2353.4,4.2490268]
[1750710984014,10.35121,2354.2,2353.2,0.8147]
[1750710984313,10.35121,2354.2,2353.3,4.249232]
[1750710984314,0.7871,2354.1,2353.3,4.249232]
[1750710984516,0.7871,2354.1,2353.2,4.24943794]
[1750710984674,0.7871,2354.1,2353.2,4.24943764]
[1750710985013,0.7871,2354.1,2353.1,4.47004903]
[1750710985014,0.7871,2354.1,2353.1,4.47003282]
[1750710985216,10.7871,2354.1,2353.2,4.2495286]
[1750710985400,10.7871,2354.1,2353.1,0.2203921]
[1750710985401,0.55,2353.8,2353.1,0.2203921]
[1750710985616,0.7871,2353.5,2353.1,0.2203921]
[1750710986579,0.7871,2353.5,2353.4,4.24917141]
[1750710986775,0.7871,2354.4,2353.5,4.24883648]
[1750710987103,1.13841,2354.4,2353.6,4.24870566]
[1750710987291,1.13841,2354.4,2353.5,4.2489789]
[1750710987486,0.7871,2354.4,2353.6,4.24863916]
[1750710987834,10.7871,2354.4,2353.6,4.24863916]
[1750710988032,0.7871,2354.4,2353.7,4.24860669]
[1750710988218,0.7871,2354.4,2353.2,4.79950629]
[1750710988219,0.7871,2354.4,2353.6,4.24873645]
[1750710988525,0.7871,2354.4,2353.6,4.24878565]
[1750710988933,0.7871,2354.4,2353.7,4.24860243]
[1750710989152,0.7871,2354.4,2353.6,0.84977007]
[1750710989319,0.7871,2354.4,2353.5,4.79890969]
[1750710989641,0.7871,2354.4,2353.2,4.24953255]
[1750710989824,0.7871,2354.4,2353.2,0.55]
[1750710990030,0.55,2354.3,2353.2,4.24939606]
[1750710990226,0.55,2354.3,2353.2,4.24942451]
[1750710990426,0.40631,2354.2,2353.3,0.95341883]
[1750710990642,0.40631,2354.2,2353.1,0.2203921]
[1750710990643,0.7764,2354.1,2353.1,0.2203921]
[1750710990849,0.7764,2354.1,2353.1,4.47007772]
[1750710991054,0.7764,2354.1,2353.1,4.47000511]
[1750710991352,0.7764,2354.1,2353.1,0.2203921]
[1750710991562,2.726,2354.0,2353.1,4.47009033]
[1750710991735,2.726,2354.0,2353.1,1.0923857]
[1750710992306,0.7764,2353.9,2353.1,0.2203921]
[1750710992544,3.5024,2354.8,2353.1,0.2203921]
[1750710992717,3.5024,2354.8,2353.6,4.24881033]
[1750710992920,3.5024,2354.8,2354.1,4.24788126]